Cogmind - Beta 15 @@@ ROGUE MODE // 2025.06.05 @ 01:05:11 // Winter2019/RPGLIKE Player: Jack Result: Destroyed by 8R-AWN with 8R-AWN's Boregun Performance ------------- Evolutions (1) 500 Regions Visited (5) 1000 Robots Destroyed (40) 200 Value Destroyed (626) 626 Prototype IDs (0) 0 Alien Tech Used (0) 0 Bonus (-380) -380 TOTAL SCORE: 1946 Bonus ------- Friendly Fire -380 Cogmind --------- Core Integrity 0/1400 Matter 37/300 Energy 96/100 System Corruption 0% Temperature Danger (417) Movement Flying (40) Location -9/Exiles Parts ------- > --- POWER (1) -------- (None) > --- PROPULSION (2) --- Flight Unit > --- UTILITY (1) ------ (None) > --- WEAPON (4) ------- Assault Rifle Light Assault Rifle Heavy Assault Rifle Heavy Assault Rifle > --- INVENTORY (0) ---- (None) Peak State ------------ > --- POWER ------------ Light Ion Engine > --- PROPULSION ------- Flight Unit Flight Unit > --- UTILITY ---------- (None) > --- WEAPON ----------- Assault Rifle Light Assault Rifle Heavy Assault Rifle Heavy Assault Rifle > --- INVENTORY -------- (None) [Rating: 9] Favorites ----------- Power Light Ion Engine Engine Light Ion Engine Propulsion Flight Unit Flight Unit Flight Unit Utility None Weapon Light Assault Rifle Ballistic Gun Light Assault Rifle Build | -11 -10 -10 -9 -9 -9 ------- Run | Yrd Mat Min Mat Min Exi Slots Evolved 4 | 4 . . . . . Power . | . . . . . . Propulsion 1 | 1 . . . . . Utility . | . . . . . . Weapon 3 | 3 . . . . . Parts Attached 9 | 2 4 1 2 . . Power 1 | . 1 . . . . Engine 1 | . 1 . . . . Core . | . . . . . . Reactor . | . . . . . . Propulsion 2 | . 1 1 . . . Treads . | . . . . . . Leg . | . . . . . . Wheel . | . . . . . . Hover . | . . . . . . Flight 2 | . 1 1 . . . Utility . | . . . . . . Device . | . . . . . . Storage . | . . . . . . Processor . | . . . . . . Hackware . | . . . . . . Protection . | . . . . . . Artifact . | . . . . . . Weapon 6 | 2 2 . 2 . . Energy Gun . | . . . . . . Energy Cannon . | . . . . . . Ballistic Gun 6 | 2 2 . 2 . . Ballistic Cannon . | . . . . . . Launcher . | . . . . . . Special Weapon . | . . . . . . Impact Weapon . | . . . . . . Slashing Weapon . | . . . . . . Piercing Weapon . | . . . . . . Special Melee Weapon . | . . . . . . Unidentified Prototypes . | . . . . . . Parts Lost 2 | . . . . . 2 Power 1 | . . . . . 1 Propulsion 1 | . . . . . 1 Utility . | . . . . . . Weapon . | . . . . . . Highest Loss Streak 2 | . . . . . 2 To Critical Strikes 1 | . . . . . 1 Average Backups . | . . . . . . Power . | . . . . . . Propulsion . | . . . . . . Utility . | . . . . . . Weapon . | . . . . . . Tool/Special . | . . . . . . Unused Backups . | . . . . . . Power . | . . . . . . Propulsion . | . . . . . . Utility . | . . . . . . Weapon . | . . . . . . Tool/Special . | . . . . . . Average Slot Usage (%) 77 | . 48 85 87 87 73 Engine 9 | . 5 12 12 12 6 Flight 19 | . 5 22 25 25 17 Ballistic Gun 47 | . 36 50 50 50 50 Peak Build Rating 9 | 2 6 7 9 9 9 Average Rating 7 | 1 4 6 7 9 7 On Entrance 5 | . 2 6 7 9 9 Naked Turns . | . . . . . . Heaviest Build 12 | 3 8 8 12 12 12 Greatest Support 13 | 8 9 13 13 13 13 Greatest Overweight (x) 1 | . . . . . 1 Average Overweight (x) . | . . . . . . Largest Inventory Capacity . | . . . . . . Average Capacity . | . . . . . . Most Carried . | . . . . . . Average Carried . | . . . . . . Final Capacity . | . . . . . . Final Carried . | . . . . . . Class Distribution -------------------- 82% | Scavenger-Gunner 9% | Mutant 7% | Gunner Dominant Class ---------------- Scavenger-Gunner | -10/Materials Scavenger-Gunner | -10/Mines Scavenger-Gunner | -9/Materials Scavenger-Gunner | -9/Mines Scavenger-Gunner | -9/Exiles Resources | -11 -10 -10 -9 -9 -9 ----------- Run | Yrd Mat Min Mat Min Exi Matter Collected 821 | 92 114 136 122 220 137 Remotely . | . . . . . . Salvage Created 917 | . 275 107 166 266 103 Parts 84 | . 25 18 11 30 . Haulers Intercepted . | . . . . . . Recyclers Shooed 1 | . . . . 1 . Parts Field Recycled . | . . . . . . Retrieved Matter . | . . . . . . Parts Self-Destructed . | . . . . . . Prevented . | . . . . . . Kills | -11 -10 -10 -9 -9 -9 ------- Run | Yrd Mat Min Mat Min Exi Combat Hostiles Destroyed 40 | . 6 11 3 13 7 Guns 38 | . 4 11 3 13 7 AOE 2 | . 2 . . . . Classes Destroyed 8 | . 6 . 1 . 1 Worker 2 | . 2 . . . . Tunneler 2 | . 1 . . 1 . Recycler 1 | . 1 . . . . Operator 1 | . 1 . . . . Swarmer 24 | . 3 11 . 10 . Grunt 6 | . 3 . 1 2 . Sentry 2 | . . . 2 . . Assembled 7 | . . . . . 7 Thug 1 | . . . . 1 . Best Kill Streak 13 | . 7 13 3 6 7 Combat Bots Only 9 | . 3 9 3 6 7 Max Kills in Single Turn 6 | . 6 2 1 2 1 Gunslinging 1 | . . 1 . 1 . Exploded 2 | . 2 . . . . Melee . | . . . . . . Uniques/NPCs Destroyed 1 | . . . . 1 . YI-UF0 (-9/Mines) Combat | -11 -10 -10 -9 -9 -9 -------- Run | Yrd Mat Min Mat Min Exi Hostile Shots Fired 254 | . 21 32 10 61 130 Missed 77 | . 9 12 5 24 27 Hits 177 | . 12 20 5 37 103 Melee 10 | . . . . . 10 Projectile 167 | . 12 20 5 37 93 AOE 4 | . . . . 4 . Critical Strikes 34 | . . . . . 34 Damage Taken 2313 | . 108 164 71 435 1535 Core 1890 | . 90 130 55 354 1261 Absorbed by Shields . | . . . . . . Redirected to Core 1373 | . 56 105 55 255 902 Ignored by Resistances 346 | . . . . . 346 Core Remaining (%) 99 | 100 . 99 . . . Volleys Fired 88 | . 7 17 5 22 37 Largest 4 | . 4 4 4 4 4 Hottest 86 | . 80 80 80 86 86 Shots Fired 342 | . 18 68 20 88 148 Gun 342 | . 18 68 20 88 148 Cannon . | . . . . . . Launcher . | . . . . . . Special . | . . . . . . Kinetic 342 | . 18 68 20 88 148 Thermal . | . . . . . . Explosive . | . . . . . . Electromagnetic . | . . . . . . Robot Hit Streak 15 | . 5 6 6 7 15 Robot Miss Streak 6 | . 2 6 1 6 5 Penetration Max . | . . . . . . Secondary Targets 19 | . . 5 . 8 6 Max Gunslinging Chain 2 | . . 2 . 2 1 Shots Hit Robots 195 | . 11 21 13 45 105 Core Hits 88 | . 18 15 7 22 26 Critical Kills . | . . . . . . Critical Parts Destroyed . | . . . . . . Critical Strikes 1 | . . . . . 1 Destroy 1 | . . . . . 1 Melee Attacks . | . . . . . . Impact . | . . . . . . Slashing . | . . . . . . Piercing . | . . . . . . Sneak Attacks . | . . . . . . Combat Hostiles . | . . . . . . Follow-up Attacks . | . . . . . . Damage Inflicted 2970 | . 413 181 136 622 1618 Guns 2688 | . 131 181 136 622 1618 Cannons . | . . . . . . Explosions 282 | . 282 . . . . Melee . | . . . . . . Ramming . | . . . . . . Kinetic 2688 | . 131 181 136 622 1618 Thermal 78 | . 78 . . . . Explosive . | . . . . . . Electromagnetic 204 | . 204 . . . . Impact . | . . . . . . Slashing . | . . . . . . Piercing . | . . . . . . Highest Corruption . | . . . . . . Average Corruption . | . . . . . . Corruption Purged . | . . . . . . Corruption Blocked . | . . . . . . Overload Shots . | . . . . . . Overflow Damage . | . . . . . . Projectiles . | . . . . . . Explosions . | . . . . . . Melee . | . . . . . . Knockbacks . | . . . . . . Impact . | . . . . . . Kinetic . | . . . . . . Secondary . | . . . . . . Self-Inflicted Damage . | . . . . . . Shots . | . . . . . . Rammed . | . . . . . . Targets Rammed . | . . . . . . Kicked . | . . . . . . Crushed . | . . . . . . Highest Temperature 440 | . 96 192 172 229 440 Average Temperature 159 | . 51 74 85 89 302 Received Heat Transfer 117 | . 24 . 24 69 . Effects 3 | . . . . . 3 Energy Bleed 1 | . . . . . 1 Matter Decay 1 | . . . . . 1 Damage (minor) 1 | . . . . . 1 Siege Activations . | . . . . . . Martial Activations . | . . . . . . Shielding Activations . | . . . . . . Robots Disrupted . | . . . . . . Combat Hostiles . | . . . . . . Robots Corrupted . | . . . . . . Combat Hostiles . | . . . . . . Parts Fried 1 | . 1 . . . . Impact Corruptions . | . . . . . . Robots Melted . | . . . . . . Combat Hostiles . | . . . . . . Parts Melted . | . . . . . . Heat Transferred . | . . . . . . Parts Sabotaged . | . . . . . . Parts Stolen . | . . . . . . Parts Stripped . | . . . . . . Power Chain Reactions 1 | . 1 . . . . Alert | -11 -10 -10 -9 -9 -9 ------- Run | Yrd Mat Min Mat Min Exi Maximum Alert Level 1 | . 1 1 1 1 . Low Security (%) 51 | 100 86 19 98 28 . Level 1 48 | . 13 80 1 71 . Level 2 . | . . . . . . Level 3 . | . . . . . . Level 4 . | . . . . . . Level 5 . | . . . . . . High Security . | . . . . . . Max Security . | . . . . . . Peak Influence 303 | . 238 303 192 290 . Initial 117 | . . 88 117 66 . Average 178 | . 88 234 157 220 . Influence Increases 967 | . 273 265 95 334 . Destroy 0b10 Robot/C 640 | . 120 220 60 240 . Destroy 0b10 Robot/NC 30 | . 25 . . 5 . Destroy Leader 110 | . 20 30 20 40 . Allied During Kill 4 | . . . . 4 . Disable Machine 60 | . 45 15 . . . Destroy Structure 3 | . 3 . . . . Lose Combat Pursuer 120 | . 60 . 15 45 . Influence Decreases 967 | . 45 190 226 226 280 Entered New Map 712 | . . 140 186 106 280 Time Decay 255 | . 45 50 40 120 . Squads Dispatched 5 | . 2 . 3 . . Investigation 2 | . 1 . 1 . . Extermination . | . . . . . . Reinforcement 3 | . 1 . 2 . . Assault . | . . . . . . Garrison . | . . . . . . Intercept . | . . . . . . Searches Triggered . | . . . . . . Construction Impeded . | . . . . . . Haulers Reinforced . | . . . . . . Active Scanning Responses . | . . . . . . Cargo Convoy Interrupts . | . . . . . . Stealth | -11 -10 -10 -9 -9 -9 --------- Run | Yrd Mat Min Mat Min Exi Distress Signals 1 | . . . 1 . . Communications Jammed . | . . . . . . Distress Signals . | . . . . . . Times Spotted 58 | . 17 12 5 16 8 Peak Tracking Total 9 | . 6 3 4 6 9 Tactical Retreats 4 | . 2 . 1 1 . Traps | -11 -10 -10 -9 -9 -9 ------- Run | Yrd Mat Min Mat Min Exi Traps Triggered 1 | . 1 . . . . Indirectly 1 | . 1 . . . . Trap Hack Attempts . | . . . . . . Triggered . | . . . . . . Disarmed . | . . . . . . Reprogrammed . | . . . . . . Reused . | . . . . . . Traps Extracted . | . . . . . . Installed . | . . . . . . Triggered . | . . . . . . Machines | -11 -10 -10 -9 -9 -9 ---------- Run | Yrd Mat Min Mat Min Exi Machines Disabled 7 | . 3 1 . . 3 Max in Single Turn 3 | . 3 1 . . 1 Machines Repaired . | . . . . . . Machines Dismantled . | . . . . . . Machines Sabotaged . | . . . . . . Overloaded Fab Kills . | . . . . . . Hacking | -11 -10 -10 -9 -9 -9 --------- Run | Yrd Mat Min Mat Min Exi Machines Accessed . | . . . . . . Terminals . | . . . . . . Fabricators . | . . . . . . Repair Stations . | . . . . . . Recycling Units . | . . . . . . Scanalyzers . | . . . . . . Garrison Access . | . . . . . . Total Hacks . | . . . . . . Successful . | . . . . . . Failed . | . . . . . . Catastrophic . | . . . . . . Database Lockouts . | . . . . . . Manual . | . . . . . . Terminals . | . . . . . . Fabricators . | . . . . . . Repair Stations . | . . . . . . Recycling Units . | . . . . . . Scanalyzers . | . . . . . . Garrison Access . | . . . . . . Terminal Hacks . | . . . . . . Fabricator Hacks . | . . . . . . Repair Station Hacks . | . . . . . . Recycling Unit Hacks . | . . . . . . Scanalyzer . | . . . . . . Garrison Access Hacks . | . . . . . . Unauthorized Hacks . | . . . . . . Terminals . | . . . . . . Fabricators . | . . . . . . Repair Stations . | . . . . . . Recycling Units . | . . . . . . Scanalyzers . | . . . . . . Garrison Access . | . . . . . . Data Cores Recovered 1 | . 1 . . . . Used . | . . . . . . Hacking Detections . | . . . . . . Full Trace Events . | . . . . . . Feedback Events . | . . . . . . Feedback Blocked . | . . . . . . Robot Schematics Acquired . | . . . . . . Robots Built . | . . . . . . Authchips . | . . . . . . Time . | . . . . . . Total Robot Build Rating . | . . . . . . Part Schematics Acquired . | . . . . . . Parts Built . | . . . . . . Authchips . | . . . . . . Time . | . . . . . . Total Part Build Rating . | . . . . . . Parts Repaired . | . . . . . . Time . | . . . . . . Parts Recycled . | . . . . . . Recycled Matter . | . . . . . . Retrieved Matter . | . . . . . . Retrieved Components . | . . . . . . Parts Scanalyzed . | . . . . . . Part Schematics Acquired . | . . . . . . Parts Damaged . | . . . . . . Bothacking | -11 -10 -10 -9 -9 -9 ------------ Run | Yrd Mat Min Mat Min Exi Used RIF Installer . | . . . . . . Robots Hacked . | . . . . . . Non-combat . | . . . . . . Combat . | . . . . . . Robot Hacks Applied . | . . . . . . Relay Couplers Released . | . . . . . . Fabnet Peak Effective % . | . . . . . . Robots Rewired . | . . . . . . Allies Hacked . | . . . . . . Hacks Repelled . | . . . . . . Allies | -11 -10 -10 -9 -9 -9 -------- Run | Yrd Mat Min Mat Min Exi Total Allies 1 | . . . . 1 . Largest Group 1 | . . . . 1 . Highest-Rated Group 31 | . . . . 31 . Highest-Rated Ally 31 | . . . . 31 . Total Orders . | . . . . . . Ally Attacks . | . . . . . . Total Damage . | . . . . . . Kills . | . . . . . . Allies Corrupted . | . . . . . . Allies Melted . | . . . . . . Intel | -11 -10 -10 -9 -9 -9 ------- Run | Yrd Mat Min Mat Min Exi Active Infowar (turns) . | . . . . . . Robot Analysis Total . | . . . . . . Derelict Logs Recovered 1 | . . . . 1 . Drone Launches . | . . . . . . Drone Recoveries . | . . . . . . Exploration | -11 -10 -10 -9 -9 -9 ------------- Run | Yrd Mat Min Mat Min Exi Turns Passed 734 | 23 122 113 88 254 134 Spaces Moved 887 | 39 169 140 106 396 37 Core 118 | 39 79 . . . . Treads . | . . . . . . Legs . | . . . . . . Wheels . | . . . . . . Hover . | . . . . . . Flight 769 | . 90 140 106 396 37 Fastest Speed 37 | 50 40 37 37 37 37 Average Speed 39 | 50 44 37 37 37 39 Slowest Speed 120 | 50 50 40 37 37 120 Overloaded Moves . | . . . . . . Propulsion Burnouts . | . . . . . . Robots Hopped 14 | . 7 3 . 4 . Potential Cave-ins . | . . . . . . Cave-ins Triggered . | . . . . . . Exploration Rate (%) 23 | 4 17 23 15 69 11 Regions Visited 5 Branch Regions 3 Pre-discovered Areas . | . . . . . . Known Exits Taken . | . . . . . . Unknown Exits Taken 5 | 1 1 1 1 1 . Scrap Searched 2 | . . . . 2 . Spaces Dug . | . . . . . . Terrain Destroyed 3 | . 3 . . . . Melee . | . . . . . . Projectile . | . . . . . . AOE 3 | . 3 . . . . Terrain Rammed . | . . . . . . Walls Destroyed . | . . . . . . Machines Disabled . | . . . . . . Actions | -11 -10 -10 -9 -9 -9 --------- Run | Yrd Mat Min Mat Min Exi Total 1064 | 40 193 164 145 448 74 Wait 60 | . 14 1 25 20 . Move 854 | 38 154 133 105 387 37 Hop 14 | . 7 3 . 4 . Pick Up . | . . . . . . Fast Attach 8 | 2 4 1 1 . . Attach . | . . . . . . Detach . | . . . . . . Swap 2 | . . . 2 . . Drop 3 | . . . 3 . . Fire 88 | . 7 17 5 22 37 Melee . | . . . . . . Ram . | . . . . . . Kick . | . . . . . . Crush . | . . . . . . Escape Stasis . | . . . . . . Rewire . | . . . . . . Trap . | . . . . . . Miscellaneous 35 | . 7 9 4 15 . Route ------- -11/Scrapyard -10/Materials -10/Mines -9/Materials -9/Mines (discovered 3 exits: [*Mat x2] / [*Exi]) -9/Exiles History --------- Turn | Location | Event 3 | -11/Scrapyard | Discovered new exit (range 15) 8 | -11/Scrapyard | Upgraded with Propulsion slot (x1) 8 | -11/Scrapyard | Upgraded with Weapon slot (x3) 24 | -11/Scrapyard | Entered Materials 53 | -10/Materials | Discovered new exit (range 6) 146 | -10/Materials | Entered Mines 148 | -10/Mines | Reached level 2 157 | -10/Mines | Met a Derelict bent on vengeance 193 | -10/Mines | Destroyed 9 combat bots 225 | -10/Mines | Discovered new exit (range 11) 259 | -10/Mines | Entered Materials 261 | -9/Materials | Reached level 3 295 | -9/Materials | Reached level 4 342 | -9/Materials | Discovered new exit (range 13) 347 | -9/Materials | Entered Mines 377 | -9/Mines | Build established: Scavenger-Gunner 423 | -9/Mines | Reached level 5 451 | -9/Mines | Discovered new exit (range 6) 498 | -9/Mines | Destroyed YI-UF0 528 | -9/Mines | Learned 2 Materials zone layouts 529 | -9/Mines | Received a Mining Laser from a helpful Derelict 590 | -9/Mines | Found a damaged Exp. Sensor Array with a note attached 593 | -9/Mines | Discovered new exit (range 12) 599 | -9/Mines | Deemed a non-threat by the Exiles lab entrance 600 | -9/Mines | Discovered new exit (range 5) 601 | -9/Mines | Entered Exiles 611 | -9/Exiles | Met 8R-AWN 615 | -9/Exiles | Attacked by the Exiles 648 | -9/Exiles | Core integrity fell below 50% 682 | -9/Exiles | Destroyed 7 combat bots 682 | -9/Exiles | Core integrity fell below 20% 735 | -9/Exiles | Destroyed by 8R-AWN with 8R-AWN's Boregun Last Messages --------------- 8R-AWN suffers critical hit (Destroy). Destroyed Prototype Device. Penetrated by HV Slug. HV Slug penetrates Earth. Penetrated by HV Slug. HV Slug penetrates Earth. Penetrated by HV Slug. HV Slug penetrates Earth. Penetrated by HV Slug. HV Slug penetrates Earth. Penetrated by HV Slug. HV Slug penetrates Earth. Penetrated by HV Slug. HV Slug penetrates Earth. Overheating: Energy bleed (-13). Earth collapses. Acquired 41 matter. Overheating: Hvy. Assault Rifle damaged (-13). Machine disabled. Penetrated by HV Slug. Map ----- +----------------------------------------------------+ | ?????????????????????????????????????????????????? | | ?????????????????????????????????????????????????? | | ?????????????????????????????????????????????????? | | ?????????????????????????????????????????????????? | | ?????????????????????????????????????????????????? | | ?????????????????????????????????????????????????? | | ?????????????????????????????????????????????????? | | ?????????????????????????????????????????????????? | | ?????????????????????????????????????????????????? | | ?????????????????????????????????????????????????? | | ?????????????????????????????????????????????????? | | ????????????????????????????????????? ???????????? | | ???????????????????????????????????? ????????????? | | ??????????????????????????????????# ?????????????? | | ?????????????????????????????????# #?????????????? | | ????????????????????????????????# #??????????????? | | ???????????????????????????????# #???????????????? | | ??????????????????????????????# #????????????? ? | | ?????????????????????????????# #?????????????# # | | ???????????????????????????## #?????????????# # | | ??????????????????????????? #?????????????# | | ???????????????????????####;#??????????????# | | ??????????????????????## %%########???????## | | ??????????????????????#" g % "# #? | | ?????????????????????##" ########??????# #? | | ???????????????????### @% ###????????### #?? | | ???????????????????# ########## #?? | | ???????????????????# #""""## #??? | | ??????????????????# * ##?? | | ??????????????? #; * #?? | | ?????????????? ##;# ##? | | ????????????? " ?#;"""""#### ## | | ???????????? #"""#?#;######??#### * | | ????????????? #####??# #??????????##### | | ????????????? ????????? ???????????????### | | ?????????????? ?????????? ?????????????????### | | ????????????????????????? ???????????????????### | | ????????????????????????? ????????????????????#" | | ????????????????????????? ????????????????????#### | | ?????????????????????????#???????????????????????# | | ?????????????????????????????????????????????????# | | ?????????????????????????????????????????????????? | | ?????????????????????????????????????????????????? | | ?????????????????????????????????????????????????? | | ?????????????????????????????????????????????????? | | ?????????????????????????????????????????????????? | | ?????????????????????????????????????????????????? | | ?????????????????????????????????????????????????? | | ?????????????????????????????????????????????????? | | ?????????????????????????????????????????????????? | +----------------------------------------------------+ Best States ------------- Heat Dissipation 25 Energy Generation 10 Energy Capacity 125 Matter Stores 300 Matter Capacity 300 Sight Range 16 Terrain Scan Density 10 Resistance: KI 20 Evasion (%) 62 Item Schematics ----------------- None Robot Schematics ------------------ None Fabricated ------------ Nothing Repaired ---------- Nothing Alien Tech Used ----------------- None Achievements -------------- None Challenges ------------ None RPGLIKE | -11 -10 -10 -9 -9 -9 --------- Run | Yrd Mat Min Mat Min Exi Levels Raised 4 | . . 1 2 1 . XP Earned 9750 | 3000 925 1825 1900 1900 200 XP Spent 9000 | 3000 . . . . 6000 Upgrades 29 | 5 . . . . 24 Propulsion Slot 1 | 1 . . . . . Weapon Slot 3 | 3 . . . . . Core Integrity 16 | . . . . . 16 Mass Support 1 | 1 . . . . . KI Resistance % 4 | . . . . . 4 KI Damage % 4 | . . . . . 4 Protomatter Created 328 | . 66 74 26 135 27 Integrity Restored 686 | . 127 156 77 326 . Core 483 | . 90 125 60 208 . Parts 203 | . 37 31 17 118 . Protomatter Decayed . | . . . . . . Game ------ Seed WarlordIntegratedPit Manual? 0 Play Time 00:09:58 Cumulative 254.8 hours Start 2025.06.05 @ 00:56:51 End 2025.06.05 @ 01:05:11 Sessions 1 Manual Loads 0 Difficulty Rogue Special Mode Winter2019/RPGLIKE Game No. 252 Rogue 63 Adventurer 177 Explorer 12 Win Type - Total 65 Types 19/1/16/2/12/0/4/5/0/6 Lore% 54 Gallery% 52 Achievement% 70 Wizard Run 0 Options --------- Layout 0 ASCII 0 Keyboard 0 Movement Numpad Keybinds 0 Fullscreen 2 Font 12/Smallcaps Map View 83x54 Zoom Use 0% Tactical HUD 0 Map Filters NONE Filters NONE Steam 1 RUN: 63fd85df-a753-4be4-baf0-267c8ced89bc